[Event "Live Chess"]
[Site "Chess.com"]
[Date "2024.06.02"]
[Round "-"]
[White "Ferrarifan27"]
[Black "gunslinger222"]
[Result "0-1"]
[WhiteElo "2128"]
[BlackElo "2257"]
[TimeControl "300"]
[EndTime "1:16:09 PDT"]
[Termination "gunslinger222 won by resignation"]

1. e4 {[%clk 0:04:56.4]} 1... e6 {[%clk 0:04:57.7]} 2. d4 {[%clk 0:04:55.3]}
2... d5 {[%clk 0:04:57.3]} 3. Nc3 {[%clk 0:04:53.4]} 3... Bb4 {[%clk 0:04:55.8]}
4. e5 {[%clk 0:04:52.3]} 4... c5 {[%clk 0:04:54.3]} 5. a3 {[%clk 0:04:51.5]}
5... Bxc3+ {[%clk 0:04:52.8]} 6. bxc3 {[%clk 0:04:51.4]} 6... Ne7 {[%clk
0:04:51.8]} 7. a4 {[%clk 0:04:50.7]} 7... b6 {[%clk 0:04:44]} 8. Qg4 {[%clk
0:04:46.6]} 8... O-O {[%clk 0:04:34.3]} 9. Ba3 {[%clk 0:04:42]} 9... Ba6 {[%clk
0:04:28.9]} 10. Bxa6 {[%clk 0:04:33.3]} 10... Nxa6 {[%clk 0:04:28.8]} 11. Nf3
{[%clk 0:04:32.2]} 11... Rc8 {[%clk 0:04:25.3]} 12. dxc5 {[%clk 0:04:22.2]}
12... bxc5 {[%clk 0:04:18.6]} 13. O-O {[%clk 0:04:14.2]} 13... Qa5 {[%clk
0:04:10.7]} 14. Ng5 {[%clk 0:03:47.3]} 14... h6 {[%clk 0:03:59.1]} 15. Nxe6
{[%clk 0:03:33]} 15... fxe6 {[%clk 0:03:59]} 16. Qxe6+ {[%clk 0:03:32]} 16...
Rf7 {[%clk 0:03:57.7]} 17. Rab1 {[%clk 0:03:19.1]} 17... Qxa4 {[%clk 0:03:50.9]}
18. Rb7 {[%clk 0:03:15.1]} 18... Re8 {[%clk 0:03:35.4]} 19. Rxa7 {[%clk
0:03:09.2]} 19... Qxa3 {[%clk 0:03:34.1]} 20. Qxa6 {[%clk 0:02:56.8]} 20... Qxa6
{[%clk 0:03:28.8]} 21. Rxa6 {[%clk 0:02:56.7]} 21... Nf5 {[%clk 0:03:20.2]} 22.
f4 {[%clk 0:02:49]} 22... d4 {[%clk 0:03:14]} 23. cxd4 {[%clk 0:02:47.2]} 23...
Nxd4 {[%clk 0:03:12.5]} 24. Rf2 {[%clk 0:02:45]} 24... g5 {[%clk 0:03:06.4]} 25.
fxg5 {[%clk 0:02:41.5]} 25... hxg5 {[%clk 0:02:57.1]} 26. Rg6+ {[%clk
0:02:36.7]} 26... Rg7 {[%clk 0:02:56.1]} 27. Rxg7+ {[%clk 0:02:26.5]} 27... Kxg7
{[%clk 0:02:56]} 28. c3 {[%clk 0:02:23.8]} 28... Nc6 {[%clk 0:02:48.5]} 29. g3
{[%clk 0:02:16.9]} 29... Rxe5 {[%clk 0:02:44.2]} 30. h4 {[%clk 0:02:16]} 30...
gxh4 {[%clk 0:02:37]} 31. gxh4 {[%clk 0:02:15.9]} 31... Re3 {[%clk 0:02:27.2]}
32. Rc2 {[%clk 0:02:08.7]} 32... Rh3 {[%clk 0:02:25]} 33. Kg2 {[%clk 0:02:06.5]}
33... Rxh4 {[%clk 0:02:23.7]} 34. Kf3 {[%clk 0:02:05.8]} 34... Kf6 {[%clk
0:02:21.1]} 35. Ke3 {[%clk 0:02:04.1]} 35... Ke5 {[%clk 0:02:19.6]} 36. Kd3
{[%clk 0:02:03]} 36... c4+ {[%clk 0:02:16.5]} 37. Ke3 {[%clk 0:02:00.2]} 37...
Rh3+ {[%clk 0:02:15.6]} 38. Kd2 {[%clk 0:01:56.9]} 38... Rh2+ {[%clk 0:02:15]}
39. Kc1 {[%clk 0:01:56.2]} 39... Rxc2+ {[%clk 0:02:14.1]} 40. Kxc2 {[%clk
0:01:56.1]} 40... Ke4 {[%clk 0:02:13.3]} 41. Kd2 {[%clk 0:01:55.1]} 41... Ne5
{[%clk 0:02:10.3]} 42. Ke2 {[%clk 0:01:53]} 42... Ng4 {[%clk 0:02:09.4]} 43. Kd2
{[%clk 0:01:52.1]} 43... Kf3 {[%clk 0:02:08.7]} 44. Kc2 {[%clk 0:01:50.7]} 44...
Ke2 {[%clk 0:02:08]} 0-1

[Event "Live Chess"]
[Site "Chess.com"]
[Date "2024.06.02"]
[Round "-"]
[White "nyclone"]
[Black "DavrosLight"]
[Result "1-0"]
[WhiteElo "1129"]
[BlackElo "774"]
[TimeControl "300"]
[EndTime "1:16:34 PDT"]
[Termination "nyclone won by checkmate"]

1. e4 {[%clk 0:04:52.1]} 1... e5 {[%clk 0:04:59]} 2. Nc3 {[%clk 0:04:41]} 2...
Nc6 {[%clk 0:04:54.6]} 3. Bc4 {[%clk 0:04:28.7]} 3... f5 {[%clk 0:04:43.7]} 4.
exf5 {[%clk 0:04:04.9]} 4... Nf6 {[%clk 0:04:34.3]} 5. d3 {[%clk 0:03:53.9]}
5... d5 {[%clk 0:04:32.4]} 6. Bb3 {[%clk 0:03:48]} 6... Bxf5 {[%clk 0:04:27]} 7.
Nf3 {[%clk 0:03:40.8]} 7... Bb4 {[%clk 0:04:15.7]} 8. O-O {[%clk 0:03:37.2]}
8... Bxc3 {[%clk 0:04:14]} 9. bxc3 {[%clk 0:03:36.5]} 9... O-O {[%clk
0:04:02.3]} 10. Re1 {[%clk 0:03:35.1]} 10... Qd6 {[%clk 0:03:37.9]} 11. a4
{[%clk 0:03:28.9]} 11... a6 {[%clk 0:03:29.7]} 12. Ba3 {[%clk 0:03:25.8]} 12...
b5 {[%clk 0:03:24.3]} 13. Bxd6 {[%clk 0:03:21.6]} 13... cxd6 {[%clk 0:03:21.7]}
14. axb5 {[%clk 0:03:17.1]} 14... axb5 {[%clk 0:03:08]} 15. Rxa8 {[%clk
0:03:14.9]} 15... Rxa8 {[%clk 0:03:07.5]} 16. d4 {[%clk 0:02:37.6]} 16... e4
{[%clk 0:03:02.6]} 17. Nd2 {[%clk 0:02:33.6]} 17... b4 {[%clk 0:02:55.8]} 18.
cxb4 {[%clk 0:02:29.5]} 18... Nxb4 {[%clk 0:02:54.5]} 19. f3 {[%clk 0:02:26.9]}
19... exf3 {[%clk 0:02:45.4]} 20. Nxf3 {[%clk 0:02:23.2]} 20... Ne4 {[%clk
0:02:33]} 21. c4 {[%clk 0:01:47.4]} 21... Nc3 {[%clk 0:02:16.1]} 22. Qc1 {[%clk
0:01:33.8]} 22... dxc4 {[%clk 0:01:54.8]} 23. Bxc4+ {[%clk 0:01:30.1]} 23...
Nbd5 {[%clk 0:01:46.9]} 24. Qxc3 {[%clk 0:01:27.4]} 24... Kf8 {[%clk 0:01:13]}
25. Bxd5 {[%clk 0:01:24.5]} 25... Rd8 {[%clk 0:01:06.4]} 26. Qc7 {[%clk
0:01:14.3]} 26... Rd7 {[%clk 0:01:01.6]} 27. Qc8+ {[%clk 0:01:09.3]} 27... Rd8
{[%clk 0:00:57.8]} 28. Qxd8# {[%clk 0:01:08.4]} 1-0

[Event "Live Chess"]
[Site "Chess.com"]
[Date "2024.06.02"]
[Round "-"]
[White "raimundklein"]
[Black "Isambard_Thomas"]
[Result "0-1"]
[WhiteElo "1570"]
[BlackElo "2160"]
[TimeControl "300"]
[EndTime "1:17:14 PDT"]
[Termination "Isambard_Thomas won by resignation"]

1. e4 {[%clk 0:04:58.1]} 1... Nc6 {[%clk 0:04:58.7]} 2. Nf3 {[%clk 0:04:56.4]}
2... d5 {[%clk 0:04:57.9]} 3. exd5 {[%clk 0:04:49.7]} 3... Qxd5 {[%clk
0:04:57.8]} 4. Nc3 {[%clk 0:04:48.4]} 4... Qh5 {[%clk 0:04:57.2]} 5. Be2 {[%clk
0:04:47.2]} 5... Bg4 {[%clk 0:04:56.7]} 6. d3 {[%clk 0:04:36.1]} 6... Nf6 {[%clk
0:04:54.9]} 7. Bf4 {[%clk 0:04:28.1]} 7... O-O-O {[%clk 0:04:52.1]} 8. Qd2
{[%clk 0:04:24.3]} 8... e5 {[%clk 0:04:29.2]} 9. Nxe5 {[%clk 0:04:21.2]} 9...
Nxe5 {[%clk 0:04:24.6]} 10. Bxg4+ {[%clk 0:04:19.5]} 10... Nexg4 {[%clk
0:04:20.3]} 11. O-O-O {[%clk 0:04:14.1]} 11... Bb4 {[%clk 0:04:15.1]} 12. h3
{[%clk 0:04:08.6]} 12... Nh6 {[%clk 0:04:09.1]} 13. g4 {[%clk 0:04:00.4]} 13...
Qa5 {[%clk 0:04:02.4]} 14. g5 {[%clk 0:03:57.2]} 14... Nd5 {[%clk 0:03:58.9]}
15. gxh6 {[%clk 0:03:53.5]} 15... Nxc3 {[%clk 0:03:55.6]} 16. bxc3 {[%clk
0:03:51.3]} 16... Bxc3 {[%clk 0:03:52.9]} 17. Qe2 {[%clk 0:03:50.4]} 17... Qa3+
{[%clk 0:03:51.7]} 0-1

[Event "Live Chess"]
[Site "Chess.com"]
[Date "2024.06.02"]
[Round "-"]
[White "KyryloPoluliakh"]
[Black "CheckThis4"]
[Result "0-1"]
[WhiteElo "1544"]
[BlackElo "2694"]
[TimeControl "300"]
[EndTime "1:17:18 PDT"]
[Termination "CheckThis4 won by checkmate"]

1. c4 {[%clk 0:04:55.2]} 1... e5 {[%clk 0:04:58.3]} 2. Nc3 {[%clk 0:04:54]} 2...
Nc6 {[%clk 0:04:57.1]} 3. g3 {[%clk 0:04:53.2]} 3... f5 {[%clk 0:04:55.9]} 4.
Bg2 {[%clk 0:04:52.5]} 4... Nf6 {[%clk 0:04:54.9]} 5. e3 {[%clk 0:04:51.6]} 5...
Bc5 {[%clk 0:04:47.8]} 6. Nge2 {[%clk 0:04:48.7]} 6... e4 {[%clk 0:04:45.7]} 7.
O-O {[%clk 0:04:45.5]} 7... O-O {[%clk 0:04:42]} 8. d3 {[%clk 0:04:41.6]} 8...
exd3 {[%clk 0:04:30.3]} 9. Qxd3 {[%clk 0:04:40.6]} 9... d6 {[%clk 0:04:29.1]}
10. Nd5 {[%clk 0:04:35.7]} 10... Ne5 {[%clk 0:04:23]} 11. Nxf6+ {[%clk
0:04:33.3]} 11... Qxf6 {[%clk 0:04:21.3]} 12. Qd1 {[%clk 0:04:29.1]} 12... c6
{[%clk 0:04:12.2]} 13. Qc2 {[%clk 0:04:17.2]} 13... Be6 {[%clk 0:04:09.9]} 14.
Nf4 {[%clk 0:04:12.3]} 14... Bxc4 {[%clk 0:04:05.1]} 15. Rd1 {[%clk 0:04:06.8]}
15... Bf7 {[%clk 0:03:57.6]} 16. Bd2 {[%clk 0:03:50.5]} 16... g5 {[%clk
0:03:50]} 17. Nh3 {[%clk 0:03:43.2]} 17... Bh5 {[%clk 0:03:38.5]} 18. Rdc1
{[%clk 0:03:35.8]} 18... Nf3+ {[%clk 0:03:29.9]} 19. Bxf3 {[%clk 0:03:33.5]}
19... Bxf3 {[%clk 0:03:28.6]} 20. Bc3 {[%clk 0:03:24.6]} 20... Qh6 {[%clk
0:03:23.2]} 21. Qb3+ {[%clk 0:03:22.9]} 21... Rf7 {[%clk 0:03:20.8]} 22. Nxg5
{[%clk 0:03:10.6]} 22... Qxg5 {[%clk 0:03:18.7]} 23. Bd2 {[%clk 0:03:05]} 23...
Qh6 {[%clk 0:03:09.8]} 24. h4 {[%clk 0:03:03.4]} 24... Qg6 {[%clk 0:03:02.5]}
25. Bc3 {[%clk 0:02:45.8]} 25... Qg4 {[%clk 0:02:54.5]} 26. Kh2 {[%clk 0:02:41]}
26... Bd5 {[%clk 0:02:51.3]} 27. Qd1 {[%clk 0:02:29.3]} 27... Re8 {[%clk
0:02:47.1]} 28. Qxg4+ {[%clk 0:02:25.8]} 28... fxg4 {[%clk 0:02:45.5]} 29. Bd4
{[%clk 0:02:22.9]} 29... Rxf2+ {[%clk 0:02:41.4]} 30. Kg1 {[%clk 0:02:20.6]}
30... Rg2+ {[%clk 0:02:40.1]} 31. Kf1 {[%clk 0:02:17.9]} 31... Rf8+ {[%clk
0:02:33.5]} 32. Ke1 {[%clk 0:02:17]} 32... Bb4+ {[%clk 0:02:29.1]} 33. Bc3
{[%clk 0:02:12.1]} 33... Bc4 {[%clk 0:02:24.7]} 34. Bxb4 {[%clk 0:02:01.6]}
34... Rf1# {[%clk 0:02:21.8]} 0-1

[Event "Live Chess"]
[Site "Chess.com"]
[Date "2024.06.02"]
[Round "-"]
[White "Duke_of_Bebington"]
[Black "jimwad"]
[Result "1-0"]
[WhiteElo "1676"]
[BlackElo "1314"]
[TimeControl "300"]
[EndTime "1:17:49 PDT"]
[Termination "Duke_of_Bebington won by resignation"]

1. e4 {[%clk 0:04:57.6]} 1... e5 {[%clk 0:04:58.8]} 2. Nf3 {[%clk 0:04:56.6]}
2... Nc6 {[%clk 0:04:57.3]} 3. Bc4 {[%clk 0:04:55.8]} 3... Bc5 {[%clk
0:04:55.4]} 4. b4 {[%clk 0:04:54.7]} 4... Bxb4 {[%clk 0:04:51.4]} 5. c3 {[%clk
0:04:53.9]} 5... Bc5 {[%clk 0:04:49.9]} 6. d4 {[%clk 0:04:52.4]} 6... exd4
{[%clk 0:04:48.9]} 7. O-O {[%clk 0:04:48]} 7... dxc3 {[%clk 0:04:43.4]} 8. Bxf7+
{[%clk 0:04:45.1]} 8... Kf8 {[%clk 0:04:40.3]} 9. Qd5 {[%clk 0:04:44.7]} 9...
Bd6 {[%clk 0:04:31]} 10. Bxg8 {[%clk 0:04:33.5]} 10... Rxg8 {[%clk 0:04:29.8]}
11. Ng5 {[%clk 0:04:24.8]} 11... Qf6 {[%clk 0:04:13.2]} 12. Nxh7+ {[%clk
0:04:22.5]} 1-0

[Event "Live Chess"]
[Site "Chess.com"]
[Date "2024.06.02"]
[Round "-"]
[White "imchessive"]
[Black "Dhaydon19"]
[Result "0-1"]
[WhiteElo "1584"]
[BlackElo "2628"]
[TimeControl "300"]
[EndTime "1:17:57 PDT"]
[Termination "Dhaydon19 won by resignation"]

1. d4 {[%clk 0:04:59.1]} 1... e6 {[%clk 0:04:59.3]} 2. c4 {[%clk 0:04:58.4]}
2... d5 {[%clk 0:04:58.3]} 3. Nf3 {[%clk 0:04:57.3]} 3... Nf6 {[%clk 0:04:57.1]}
4. g3 {[%clk 0:04:56.4]} 4... dxc4 {[%clk 0:04:56.1]} 5. Ne5 {[%clk 0:04:55.5]}
5... c5 {[%clk 0:04:54.7]} 6. Qa4+ {[%clk 0:04:36.2]} 6... Nbd7 {[%clk
0:04:52.1]} 7. Qxc4 {[%clk 0:04:30.2]} 7... cxd4 {[%clk 0:04:38.2]} 8. Qxd4
{[%clk 0:04:14]} 8... Bc5 {[%clk 0:04:36.4]} 9. Qc3 {[%clk 0:04:08.2]} 9...
Bxf2+ {[%clk 0:04:26]} 10. Kd1 {[%clk 0:03:45.8]} 10... Nxe5+ {[%clk 0:04:23.6]}
11. Bd2 {[%clk 0:03:38.8]} 11... Bd4 {[%clk 0:04:15.9]} 12. Qb4 {[%clk
0:03:32.3]} 12... Nc6 {[%clk 0:04:08.3]} 13. Qa3 {[%clk 0:03:22.5]} 13... Ne4
{[%clk 0:04:05]} 14. Bg2 {[%clk 0:03:09]} 14... Nf2+ {[%clk 0:04:03]} 15. Ke1
{[%clk 0:03:05.2]} 15... Nxh1 {[%clk 0:04:02.9]} 16. Bxh1 {[%clk 0:03:03.7]}
16... Qe7 {[%clk 0:04:00.2]} 17. Bxc6+ {[%clk 0:02:57.8]} 17... bxc6 {[%clk
0:03:58.3]} 18. Qa4 {[%clk 0:02:53.6]} 18... Qc5 {[%clk 0:03:56.4]} 19. Bb4
{[%clk 0:02:36.1]} 19... Qb5 {[%clk 0:03:54.8]} 20. Qa3 {[%clk 0:02:30.7]} 20...
a5 {[%clk 0:03:50.1]} 21. Bd6 {[%clk 0:02:22.3]} 21... Bxb2 {[%clk 0:03:44.4]}
22. Nc3 {[%clk 0:02:13.4]} 22... Bxa3 {[%clk 0:03:41.9]} 23. Nxb5 {[%clk
0:02:11.1]} 23... cxb5 {[%clk 0:03:38.6]} 0-1

[Event "Live Chess"]
[Site "Chess.com"]
[Date "2024.06.02"]
[Round "-"]
[White "Ocelot32"]
[Black "GoldsmanB"]
[Result "1-0"]
[WhiteElo "1379"]
[BlackElo "1102"]
[TimeControl "300"]
[EndTime "1:18:13 PDT"]
[Termination "Ocelot32 won by checkmate"]

1. e4 {[%clk 0:04:57.5]} 1... e6 {[%clk 0:04:59.2]} 2. d4 {[%clk 0:04:56.2]}
2... d5 {[%clk 0:04:58.1]} 3. Bd3 {[%clk 0:04:53.4]} 3... c5 {[%clk 0:04:52.8]}
4. exd5 {[%clk 0:04:49.1]} 4... exd5 {[%clk 0:04:50.5]} 5. c3 {[%clk 0:04:47.5]}
5... Nc6 {[%clk 0:04:47.7]} 6. Nf3 {[%clk 0:04:46.2]} 6... Nf6 {[%clk
0:04:43.6]} 7. O-O {[%clk 0:04:45]} 7... Bd6 {[%clk 0:04:41.8]} 8. Re1+ {[%clk
0:04:44.1]} 8... Be6 {[%clk 0:04:40]} 9. Ng5 {[%clk 0:04:43]} 9... Qe7 {[%clk
0:04:28.6]} 10. Bf5 {[%clk 0:04:24.1]} 10... Nd8 {[%clk 0:04:24.3]} 11. Nd2
{[%clk 0:04:07.1]} 11... Qd7 {[%clk 0:04:22.6]} 12. Nxe6 {[%clk 0:04:04.5]}
12... fxe6 {[%clk 0:04:17.6]} 13. Bc2 {[%clk 0:03:59.4]} 13... O-O {[%clk
0:04:15.7]} 14. Nf3 {[%clk 0:03:54.1]} 14... b6 {[%clk 0:04:06.2]} 15. Bg5
{[%clk 0:03:43]} 15... Be7 {[%clk 0:04:00.2]} 16. Bh4 {[%clk 0:03:33.9]} 16...
Ne8 {[%clk 0:03:54.4]} 17. Bxe7 {[%clk 0:03:31.5]} 17... Qxe7 {[%clk 0:03:53.5]}
18. Qd3 {[%clk 0:03:30.6]} 18... g6 {[%clk 0:03:49.8]} 19. Ne5 {[%clk
0:03:29.1]} 19... Nf7 {[%clk 0:03:43.6]} 20. Nxg6 {[%clk 0:03:23.2]} 20... hxg6
{[%clk 0:03:42.2]} 21. Qxg6+ {[%clk 0:03:22.1]} 21... Kh8 {[%clk 0:03:39.9]} 22.
Qh7# {[%clk 0:03:21.3]} 1-0

[Event "Live Chess"]
[Site "Chess.com"]
[Date "2024.06.02"]
[Round "-"]
[White "EdenHazard8"]
[Black "ProfPoisson"]
[Result "1-0"]
[WhiteElo "2189"]
[BlackElo "1348"]
[TimeControl "300"]
[EndTime "1:18:31 PDT"]
[Termination "EdenHazard8 won by resignation"]

1. e4 {[%clk 0:04:56.3]} 1... e5 {[%clk 0:04:56.9]} 2. Nf3 {[%clk 0:04:55]} 2...
Nf6 {[%clk 0:04:54.3]} 3. Nxe5 {[%clk 0:04:52.4]} 3... Nxe4 {[%clk 0:04:51.9]}
4. Qe2 {[%clk 0:04:50.3]} 4... Qe7 {[%clk 0:04:49.8]} 5. Qxe4 {[%clk 0:04:48.9]}
5... d6 {[%clk 0:04:48.4]} 6. d4 {[%clk 0:04:47.8]} 6... dxe5 {[%clk 0:04:46.1]}
7. dxe5 {[%clk 0:04:47.7]} 7... Nc6 {[%clk 0:04:43.8]} 8. Nc3 {[%clk 0:04:32.8]}
8... Qxe5 {[%clk 0:04:28.4]} 9. Qxe5+ {[%clk 0:04:31.1]} 9... Nxe5 {[%clk
0:04:24.5]} 10. Bf4 {[%clk 0:04:30.4]} 10... f6 {[%clk 0:04:20.3]} 11. O-O-O
{[%clk 0:04:28.5]} 11... Bf5 {[%clk 0:04:04.8]} 12. Nb5 {[%clk 0:04:23.2]} 12...
Bd6 {[%clk 0:03:54]} 13. Rxd6 {[%clk 0:04:16.3]} 13... cxd6 {[%clk 0:03:42.6]}
14. Nxd6+ {[%clk 0:04:16.2]} 14... Ke7 {[%clk 0:03:37.7]} 15. Nxf5+ {[%clk
0:04:14.9]} 15... Ke6 {[%clk 0:03:33.4]} 16. Nxg7+ {[%clk 0:04:12.3]} 1-0

[Event "Live Chess"]
[Site "Chess.com"]
[Date "2024.06.02"]
[Round "-"]
[White "Crowded_House"]
[Black "TheSmoulderingMaster"]
[Result "1-0"]
[WhiteElo "1667"]
[BlackElo "1735"]
[TimeControl "300"]
[EndTime "1:19:19 PDT"]
[Termination "Crowded_House won by resignation"]

1. d4 {[%clk 0:04:54.7]} 1... Nf6 {[%clk 0:04:58.6]} 2. Bg5 {[%clk 0:04:52.6]}
2... Ne4 {[%clk 0:04:56.8]} 3. Bh4 {[%clk 0:04:51.4]} 3... c5 {[%clk 0:04:54]}
4. Nd2 {[%clk 0:04:48]} 4... d5 {[%clk 0:04:46.1]} 5. Nxe4 {[%clk 0:04:41]} 5...
dxe4 {[%clk 0:04:43.9]} 6. dxc5 {[%clk 0:04:38.5]} 6... Qa5+ {[%clk 0:04:41.9]}
7. c3 {[%clk 0:04:31.8]} 7... Qxc5 {[%clk 0:04:40.1]} 8. Qd4 {[%clk 0:04:25.5]}
8... Qxd4 {[%clk 0:04:37.7]} 9. cxd4 {[%clk 0:04:24.6]} 9... Nc6 {[%clk
0:04:36.6]} 10. e3 {[%clk 0:04:21.1]} 10... Bg4 {[%clk 0:04:30.2]} 11. h3 {[%clk
0:04:17.1]} 11... Bh5 {[%clk 0:04:28.3]} 12. Bb5 {[%clk 0:04:13.6]} 12... O-O-O
{[%clk 0:04:25.4]} 13. Rc1 {[%clk 0:04:00.6]} 13... Rd6 {[%clk 0:04:19.3]} 14.
Bg3 {[%clk 0:03:55.7]} 14... Rg6 {[%clk 0:04:10.9]} 15. Ne2 {[%clk 0:03:50.2]}
15... Bxe2 {[%clk 0:04:01.6]} 16. Kxe2 {[%clk 0:03:49.1]} 16... e6 {[%clk
0:03:59.6]} 17. Bxc6 {[%clk 0:03:43.6]} 17... bxc6 {[%clk 0:03:57.7]} 18. Rxc6+
{[%clk 0:03:42.9]} 18... Kb7 {[%clk 0:03:55.4]} 19. Rhc1 {[%clk 0:03:33.5]}
19... Bb4 {[%clk 0:03:49.5]} 20. Rc7+ {[%clk 0:03:20.7]} 20... Kb6 {[%clk
0:03:33]} 21. Rxf7 {[%clk 0:03:19.3]} 21... Rc8 {[%clk 0:03:26.2]} 22. Rxc8
{[%clk 0:03:17]} 1-0

[Event "Live Chess"]
[Site "Chess.com"]
[Date "2024.06.02"]
[Round "-"]
[White "defenderalist"]
[Black "booktrunk"]
[Result "0-1"]
[WhiteElo "1536"]
[BlackElo "1509"]
[TimeControl "300"]
[EndTime "1:19:26 PDT"]
[Termination "booktrunk won by resignation"]

1. e4 {[%clk 0:04:54.2]} 1... b6 {[%clk 0:04:53.9]} 2. d4 {[%clk 0:04:49.6]}
2... e6 {[%clk 0:04:50.6]} 3. Nc3 {[%clk 0:04:42.6]} 3... Bb7 {[%clk 0:04:49.5]}
4. Bd3 {[%clk 0:04:40.4]} 4... h6 {[%clk 0:04:48.5]} 5. Nf3 {[%clk 0:04:36.6]}
5... Bb4 {[%clk 0:04:47.2]} 6. O-O {[%clk 0:04:34.8]} 6... Bxc3 {[%clk
0:04:45.8]} 7. bxc3 {[%clk 0:04:33.9]} 7... d6 {[%clk 0:04:44.9]} 8. e5 {[%clk
0:04:28.3]} 8... dxe5 {[%clk 0:04:42.4]} 9. Nxe5 {[%clk 0:04:25.7]} 9... Nd7
{[%clk 0:04:41.2]} 10. f4 {[%clk 0:04:23]} 10... Nxe5 {[%clk 0:04:39.7]} 11.
fxe5 {[%clk 0:04:22.9]} 11... Qe7 {[%clk 0:04:34.7]} 12. a4 {[%clk 0:04:14.3]}
12... Qd7 {[%clk 0:04:31.5]} 13. Qe2 {[%clk 0:04:05.3]} 13... Qd5 {[%clk
0:04:21.8]} 14. a5 {[%clk 0:03:48.7]} 14... bxa5 {[%clk 0:04:19.4]} 15. Ba3
{[%clk 0:03:37.9]} 15... Ne7 {[%clk 0:04:16.7]} 16. Bxe7 {[%clk 0:03:36.2]}
16... Kxe7 {[%clk 0:04:14.8]} 17. Rf2 {[%clk 0:03:23.1]} 17... Qd7 {[%clk
0:04:09.6]} 18. Rxa5 {[%clk 0:03:15]} 18... Rhb8 {[%clk 0:04:06.3]} 19. Ra1
{[%clk 0:02:53.4]} 19... Bc6 {[%clk 0:04:04.3]} 20. Raf1 {[%clk 0:02:51.6]}
20... Rf8 {[%clk 0:04:00.2]} 21. Qh5 {[%clk 0:02:49.5]} 21... Qe8 {[%clk
0:03:56.4]} 22. Qh4+ {[%clk 0:02:39.9]} 22... Kd7 {[%clk 0:03:55.2]} 23. c4
{[%clk 0:02:35.3]} 23... Rb8 {[%clk 0:03:51.4]} 24. Be4 {[%clk 0:02:26.5]} 24...
Bxe4 {[%clk 0:03:47.7]} 25. Qxe4 {[%clk 0:02:25.1]} 25... Qe7 {[%clk 0:03:42.5]}
26. d5 {[%clk 0:02:24]} 26... exd5 {[%clk 0:03:41]} 27. cxd5 {[%clk 0:02:23.5]}
27... f6 {[%clk 0:03:36.9]} 28. Qa4+ {[%clk 0:02:06.9]} 28... Kd8 {[%clk
0:03:31.8]} 29. e6 {[%clk 0:02:00.6]} 29... Qc5 {[%clk 0:03:13.5]} 30. Qb4
{[%clk 0:01:55.4]} 30... Rxb4 {[%clk 0:03:08.8]} 0-1

[Event "Live Chess"]
[Site "Chess.com"]
[Date "2024.06.02"]
[Round "-"]
[White "AlanBstard10"]
[Black "NeilDruggan73"]
[Result "1/2-1/2"]
[WhiteElo "1203"]
[BlackElo "1711"]
[TimeControl "300"]
[EndTime "1:19:49 PDT"]
[Termination "Game drawn by repetition"]

1. Nf3 {[%clk 0:04:56.1]} 1... d6 {[%clk 0:04:57.4]} 2. d4 {[%clk 0:04:55.1]}
2... Nf6 {[%clk 0:04:53]} 3. c4 {[%clk 0:04:52.7]} 3... g6 {[%clk 0:04:52.3]} 4.
e3 {[%clk 0:04:51.8]} 4... Bg7 {[%clk 0:04:51.7]} 5. Be2 {[%clk 0:04:50.9]} 5...
c6 {[%clk 0:04:49.8]} 6. b3 {[%clk 0:04:49.9]} 6... Nbd7 {[%clk 0:04:45.5]} 7.
Nbd2 {[%clk 0:04:49.1]} 7... a5 {[%clk 0:04:44.8]} 8. Rb1 {[%clk 0:04:47.7]}
8... O-O {[%clk 0:04:43]} 9. Bb2 {[%clk 0:04:47]} 9... Nb6 {[%clk 0:04:40.6]}
10. c5 {[%clk 0:04:42.2]} 10... Nbd7 {[%clk 0:04:31.8]} 11. cxd6 {[%clk
0:04:40.2]} 11... exd6 {[%clk 0:04:30.8]} 12. O-O {[%clk 0:04:33.1]} 12... d5
{[%clk 0:04:29.8]} 13. Ne5 {[%clk 0:04:26.2]} 13... Ne4 {[%clk 0:04:26]} 14.
Nxe4 {[%clk 0:04:24.7]} 14... dxe4 {[%clk 0:04:24.8]} 15. Nxd7 {[%clk
0:04:17.3]} 15... Bxd7 {[%clk 0:04:23.5]} 16. f3 {[%clk 0:04:15.1]} 16... f5
{[%clk 0:04:19.3]} 17. fxe4 {[%clk 0:04:13.4]} 17... fxe4 {[%clk 0:04:18]} 18.
Rxf8+ {[%clk 0:04:12.6]} 18... Qxf8 {[%clk 0:04:16]} 19. Qf1 {[%clk 0:04:12.2]}
19... Qb4 {[%clk 0:04:12]} 20. Qe1 {[%clk 0:04:03.8]} 20... Qd6 {[%clk
0:04:05.9]} 21. Qg3 {[%clk 0:04:01.2]} 21... Qb4 {[%clk 0:04:02.5]} 22. Qe1
{[%clk 0:03:57.3]} 22... Qe7 {[%clk 0:04:01.3]} 23. Qd1 {[%clk 0:03:42.3]} 23...
Rf8 {[%clk 0:03:59.4]} 24. d5 {[%clk 0:03:37.5]} 24... Bxb2 {[%clk 0:03:54.8]}
25. Rxb2 {[%clk 0:03:36.6]} 25... Qf6 {[%clk 0:03:53.6]} 26. Bc4 {[%clk
0:03:26.6]} 26... Qxb2 {[%clk 0:03:45.6]} 27. dxc6+ {[%clk 0:03:25.9]} 27... Kh8
{[%clk 0:03:42.2]} 28. cxd7 {[%clk 0:03:18.9]} 28... h5 {[%clk 0:03:32.9]} 29.
d8=Q {[%clk 0:03:03.3]} 29... Qf2+ {[%clk 0:03:29.8]} 30. Kh1 {[%clk 0:03:00]}
30... Rxd8 {[%clk 0:03:28.6]} 31. Qxd8+ {[%clk 0:02:57.8]} 31... Kg7 {[%clk
0:03:28.3]} 32. Qd4+ {[%clk 0:02:45.5]} 32... Kh6 {[%clk 0:03:26.1]} 33. Qd1
{[%clk 0:02:26.1]} 33... Qxe3 {[%clk 0:03:21.6]} 34. h3 {[%clk 0:02:15.4]} 34...
h4 {[%clk 0:03:18.6]} 35. Qe2 {[%clk 0:02:05.4]} 35... Qc1+ {[%clk 0:03:15.6]}
36. Kh2 {[%clk 0:02:01.2]} 36... Qf4+ {[%clk 0:03:15.2]} 37. Kg1 {[%clk
0:01:55.4]} 37... b6 {[%clk 0:03:05.3]} 38. Qf2 {[%clk 0:01:47.1]} 38... Qc1+
{[%clk 0:03:01.6]} 39. Qf1 {[%clk 0:01:45]} 39... Qd2 {[%clk 0:02:56.3]} 40. Qf2
{[%clk 0:01:41.8]} 40... Qc1+ {[%clk 0:02:52.6]} 41. Qf1 {[%clk 0:01:40.6]}
41... Qd2 {[%clk 0:02:50.9]} 42. Qf2 {[%clk 0:01:39.2]} 42... Qc1+ {[%clk
0:02:40.9]} 1/2-1/2